bitfinex/quotes_BTCUSD_20251224
["timestamp","ask_amount","ask_price","bid_price","bid_amount"]
[1766614237968,0.01138265,87853.0,87844.0,0.0114]
[1766614238172,0.01138252,87854.0,87844.0,0.0114]
[1766614238374,0.01138278,87852.0,87844.0,0.0114]
[1766614238950,0.05691119,87857.0,87839.0,0.10016816]
[1766614238951,0.000994,87844.0,87839.0,0.03186181]
[1766614239168,0.01138342,87847.0,87840.0,0.0114]
[1766614239368,0.12466,87848.0,87840.0,0.0114]
[1766614239740,0.13604329,87848.0,87840.0,0.0114]
[1766614239932,0.12466,87848.0,87840.0,0.0114]
[1766614241268,0.12466,87848.0,87840.0,0.02278433]
[1766614241477,0.12466,87848.0,87840.0,0.0114]
[1766614241857,0.12466,87848.0,87840.0,0.02278433]
[1766614242620,0.12466,87848.0,87840.0,0.0114]
[1766614242832,0.000444,87840.0,87829.0,0.04556]
[1766614243037,0.000444,87840.0,87832.0,0.01138537]
[1766614243255,0.12466,87843.0,87833.0,0.0114]
[1766614243704,0.00269313,87842.0,87833.0,0.0114]
[1766614246015,0.00250748,87842.0,87833.0,0.0114]
[1766614246979,0.00250748,87842.0,87833.0,0.01150601]
[1766614247992,0.00250748,87842.0,87833.0,0.02289125]
[1766614248223,0.00250748,87842.0,87833.0,0.01150601]
[1766614248674,0.00250748,87842.0,87833.0,0.02289125]
[1766614249129,0.00250748,87842.0,87836.0,0.01138485]
[1766614249351,0.00250748,87842.0,87835.0,0.01138498]
[1766614250156,0.00240248,87842.0,87837.0,0.01138472]
[1766614250437,0.00240248,87842.0,87838.0,0.0114]
[1766614251887,0.00240248,87842.0,87839.0,0.01138446]
[1766614252631,0.0796962,87853.0,87839.0,0.01138446]
[1766614252632,0.0114,87853.0,87846.0,0.01138355]
[1766614252858,0.0114,87853.0,87842.0,0.01138407]
[1766614253057,0.13606,87853.0,87842.0,0.01138407]
[1766614253278,0.13606,87853.0,87844.0,0.01138381]
[1766614253708,0.13606,87853.0,87843.0,0.01138394]
[1766614254587,0.13606,87853.0,87843.0,0.06830309]
[1766614254801,0.13606,87853.0,87844.0,0.0114]
[1766614256013,0.13606,87853.0,87844.0,0.02278381]
[1766614256662,0.13606,87853.0,87844.0,0.0114]
[1766614260348,0.14744265,87853.0,87844.0,0.0114]
[1766614261777,0.01138278,87852.0,87844.0,0.0114]
[1766614262201,0.14744265,87853.0,87844.0,0.0114]
[1766614262723,0.13606,87853.0,87844.0,0.0114]
[1766614263250,0.14744265,87853.0,87844.0,0.0114]
[1766614264650,0.13606,87853.0,87844.0,0.0114]
[1766614264862,0.14744265,87853.0,87844.0,0.0114]
[1766614265812,0.13606,87853.0,87844.0,0.0114]
[1766614266014,0.13606,87853.0,87849.0,0.01138316]
[1766614266240,0.13606,87853.0,87844.0,0.0114]
[1766614266442,0.13606,87853.0,87848.0,0.01138329]
[1766614266670,0.13606,87853.0,87849.0,0.01138316]
[1766614266866,0.13606,87853.0,87850.0,0.01138303]
[1766614267174,0.00024951,87855.0,87852.0,0.01138278]
[1766614267396,0.00024951,87855.0,87852.0,0.06829634]
[1766614267597,0.00024951,87855.0,87852.0,0.01138278]
[1766614267791,0.12082951,87855.0,87851.0,0.0113829]
[1766614268452,0.12082951,87855.0,87852.0,0.01138278]
[1766614268623,0.12082951,87855.0,87850.0,0.01138303]
[1766614269043,0.12082951,87855.0,87851.0,0.0113829]
[1766614269242,0.12082951,87855.0,87850.0,0.01138303]
[1766614269986,0.12082951,87855.0,87852.0,0.01138278]
[1766614270427,0.12082951,87855.0,87850.0,0.01138303]
[1766614270636,0.12082951,87855.0,87849.0,0.01138316]
[1766614271131,0.12082951,87855.0,87848.0,0.06829944]
[1766614271341,0.12082951,87855.0,87844.0,0.02278381]
[1766614271976,0.12082951,87855.0,87844.0,0.0114]
[1766614272181,0.01138252,87854.0,87844.0,0.0114]
[1766614272386,0.12082951,87855.0,87844.0,0.02278381]
[1766614273052,0.12082951,87855.0,87845.0,0.01138368]
[1766614273204,0.12082951,87855.0,87846.0,0.01138355]
[1766614273409,0.12082951,87855.0,87845.0,0.01138368]
[1766614273892,0.12082951,87855.0,87844.0,0.02278381]
[1766614274097,0.12082951,87855.0,87845.0,0.01138368]
[1766614274304,0.12082951,87855.0,87846.0,0.01138355]
[1766614274557,0.12082951,87855.0,87845.0,0.01138368]
[1766614274759,0.12082951,87855.0,87846.0,0.01138355]
[1766614274966,0.12082951,87855.0,87845.0,0.01138368]
[1766614275986,0.12082951,87855.0,87844.0,0.02278381]
[1766614276414,0.12082951,87855.0,87845.0,0.01138368]
[1766614276624,0.12082951,87855.0,87844.0,0.02278381]
[1766614276829,0.1322119,87855.0,87844.0,0.02278381]
[1766614277031,0.12082951,87855.0,87844.0,0.02278381]
[1766614277267,0.12082951,87855.0,87845.0,0.01138368]
[1766614277619,0.12082951,87855.0,87844.0,0.02278381]
[1766614277801,0.12082951,87855.0,87845.0,0.01138368]
[1766614278207,0.12082951,87855.0,87844.0,0.02278381]
[1766614278723,0.12082951,87855.0,87845.0,0.01138368]
[1766614278904,0.12082951,87855.0,87844.0,0.02278381]
[1766614279305,0.12082951,87855.0,87845.0,0.01138368]
[1766614279725,0.12082951,87855.0,87846.0,0.01138355]
[1766614281094,0.12082951,87855.0,87844.0,0.0114]
[1766614281300,0.1322119,87855.0,87844.0,0.0114]
[1766614281847,0.1322119,87855.0,87844.0,0.02278381]
[1766614282053,0.12082951,87855.0,87844.0,0.02278381]
[1766614282735,0.12082951,87855.0,87845.0,0.01138368]
[1766614282927,0.12082951,87855.0,87844.0,0.02278381]
[1766614283109,0.12082951,87855.0,87845.0,0.01138368]
[1766614283474,0.12082951,87855.0,87846.0,0.01138355]
[1766614283871,0.12082951,87855.0,87845.0,0.01138368]
[1766614285792,0.12082951,87855.0,87846.0,0.01138355]
[1766614285991,0.12082951,87855.0,87845.0,0.01138368]
[1766614286198,0.1322119,87855.0,87844.0,0.02278381]
[1766614286405,0.12058,87854.0,87844.0,0.0114]
[1766614286562,0.12058,87854.0,87844.0,0.02278381]
[1766614287219,0.12058,87854.0,87845.0,0.01138368]
[1766614287423,0.12058,87854.0,87846.0,0.01138355]
[1766614288614,0.12058,87854.0,87844.0,0.02278381]
[1766614288953,0.12058,87854.0,87845.0,0.01138368]
[1766614289232,0.12058,87854.0,87844.0,0.0114]
[1766614289428,0.13196252,87854.0,87844.0,0.0114]
[1766614289840,0.01138265,87853.0,87844.0,0.0114]
[1766614290459,0.13196252,87854.0,87844.0,0.0114]
[1766614292984,0.12058,87854.0,87844.0,0.0114]
[1766614293413,0.13196252,87854.0,87844.0,0.0114]
[1766614293620,0.12058,87854.0,87844.0,0.02278381]
[1766614294049,0.01138265,87853.0,87844.0,0.0114]
[1766614294454,0.13196252,87854.0,87844.0,0.0114]
[1766614297703,0.12058,87854.0,87844.0,0.0114]
[1766614298277,0.06829859,87850.0,87844.0,0.010851]
[1766614298481,0.01138303,87850.0,87844.0,0.010851]
[1766614298695,0.0113829,87851.0,87844.0,0.010851]
[1766614299125,0.01138329,87848.0,87844.0,0.010851]
[1766614299433,0.01138316,87849.0,87844.0,0.010851]
[1766614300186,0.01138303,87850.0,87844.0,0.010851]
[1766614300386,0.01138316,87849.0,87844.0,0.010851]
[1766614300940,0.01138303,87850.0,87844.0,0.010851]
[1766614304262,0.0113829,87851.0,87844.0,0.010851]
[1766614305268,0.12684278,87852.0,87844.0,0.010851]
[1766614306427,0.0113829,87851.0,87844.0,0.010851]
[1766614306627,0.12684278,87852.0,87844.0,0.010851]
[1766614306983,0.0113829,87851.0,87844.0,0.010851]
[1766614307180,0.12684278,87852.0,87844.0,0.010851]
[1766614308051,0.0113829,87851.0,87844.0,0.010851]
[1766614309284,0.12684278,87852.0,87844.0,0.010851]
[1766614310113,0.0113829,87851.0,87844.0,0.010851]
[1766614312137,0.01138303,87850.0,87844.0,0.010851]
[1766614312561,0.0113829,87851.0,87844.0,0.010851]
[1766614315138,0.12684278,87852.0,87844.0,0.010851]
[1766614318045,0.01138303,87850.0,87844.0,0.010851]
[1766614318227,0.11546,87852.0,87844.0,0.010851]
[1766614318430,0.12684278,87852.0,87844.0,0.010851]
[1766614319162,0.1142,87850.0,87844.0,0.010851]
[1766614319294,0.12558303,87850.0,87844.0,0.010851]
[1766614319484,0.1142,87850.0,87844.0,0.010851]
[1766614321771,0.0116319,87855.0,87850.0,0.000549]
[1766614322088,0.12558252,87854.0,87850.0,0.000549]
[1766614322305,0.12558252,87854.0,87844.0,0.010851]
[1766614322306,0.1142,87853.0,87844.0,0.010851]
[1766614322496,0.12558265,87853.0,87844.0,0.010851]
[1766614322864,0.1142,87853.0,87844.0,0.010851]
[1766614323262,0.12558265,87853.0,87844.0,0.010851]
[1766614323461,0.1142,87853.0,87844.0,0.010851]
[1766614323668,0.12558265,87853.0,87844.0,0.010851]
[1766614323874,0.1142,87853.0,87844.0,0.010851]
[1766614325425,0.12558265,87853.0,87844.0,0.010851]
[1766614325921,0.1142,87853.0,87844.0,0.010851]
[1766614327776,0.01138278,87852.0,87844.0,0.010851]
[1766614327994,0.1142,87853.0,87844.0,0.010851]
[1766614328198,0.12558278,87852.0,87844.0,0.010851]
[1766614328852,0.12558278,87852.0,87844.0,0.01074832]
[1766614330007,0.1142,87852.0,87844.0,0.01074832]
[1766614330370,0.0113829,87851.0,87844.0,0.01074832]
[1766614331017,0.12558278,87852.0,87844.0,0.01074832]
[1766614331228,0.1142,87852.0,87844.0,0.01074832]
[1766614332656,0.12558278,87852.0,87844.0,0.01074832]
[1766614333065,0.0113829,87851.0,87844.0,0.01064507]
[1766614333223,0.12558278,87852.0,87844.0,0.01064507]
[1766614334380,0.0113829,87851.0,87844.0,0.01064507]
[1766614334583,0.12558278,87852.0,87844.0,0.01064507]
[1766614335282,0.1142,87852.0,87844.0,0.01064507]
[1766614335484,0.12558278,87852.0,87844.0,0.01064507]
[1766614335982,0.0113829,87851.0,87844.0,0.01064507]
[1766614336183,0.12558278,87852.0,87844.0,0.01064507]
[1766614336382,0.1142,87852.0,87844.0,0.01064507]
[1766614337395,0.12558278,87852.0,87844.0,0.01064507]
[1766614337535,0.1142,87852.0,87844.0,0.01064507]
[1766614337889,0.1142,87850.0,87845.0,0.0114]
[1766614338873,0.1142,87850.0,87845.0,0.01129963]
[1766614340550,0.1142,87850.0,87845.0,0.0112009]
[1766614354629,0.11488,87854.0,87850.0,0.000549]
[1766614355001,0.11488,87854.0,87845.0,0.0112009]
[1766614356143,0.11488,87854.0,87845.0,0.02258458]
[1766614356558,0.11488,87854.0,87846.0,0.01138355]
[1766614356720,0.11488,87854.0,87847.0,0.01138342]
[1766614356921,0.11488,87854.0,87846.0,0.01138355]
[1766614357122,0.11488,87854.0,87847.0,0.01138342]
[1766614357318,0.11488,87854.0,87846.0,0.01138355]
[1766614357966,0.11488,87854.0,87847.0,0.01138342]
[1766614358163,0.11488,87854.0,87845.0,0.02258458]
[1766614358400,0.11488,87854.0,87846.0,0.01138355]
[1766614358548,0.11488,87854.0,87845.0,0.0112009]
[1766614359568,0.11488,87854.0,87845.0,0.02258458]
[1766614360402,0.11488,87854.0,87845.0,0.0112009]
[1766614360719,0.11488,87854.0,87845.0,0.02258458]
[1766614361525,0.11488,87854.0,87845.0,0.0112009]
[1766614362233,0.11488,87854.0,87846.0,0.0114]
[1766614362433,0.12626252,87854.0,87846.0,0.0114]
[1766614363071,0.11488,87854.0,87846.0,0.0114]
[1766614363989,0.12626252,87854.0,87846.0,0.0114]
[1766614364853,0.11488,87854.0,87846.0,0.0114]
[1766614365213,0.12626252,87854.0,87846.0,0.0114]
[1766614365639,0.11488,87854.0,87846.0,0.0114]
[1766614369829,0.12626252,87854.0,87846.0,0.0114]
[1766614372180,0.11488,87854.0,87846.0,0.0114]
[1766614372397,0.12626252,87854.0,87846.0,0.0114]
[1766614372815,0.11488,87854.0,87846.0,0.0114]
[1766614373969,0.12626252,87854.0,87846.0,0.0114]
[1766614374294,0.11488,87854.0,87846.0,0.0114]
[1766614380327,4.64e-06,87858.0,87855.0,0.06829382]
[1766614380547,4.64e-06,87858.0,87855.0,0.01138239]
[1766614380764,4.64e-06,87858.0,87854.0,0.0114]
[1766614380765,0.01149031,87871.0,87867.0,0.01138083]
[1766614380766,0.00011,87871.0,87867.0,0.01138083]
[1766614380976,0.03417162,87881.0,87870.0,0.01138044]
[1766614381187,1.62e-06,87881.0,87872.0,0.06828053]
[1766614381434,0.0113785,87885.0,87874.0,0.01137993]
[1766614381638,0.01137863,87884.0,87873.0,0.02278005]
[1766614381844,0.18081066,87888.0,87873.0,0.02278005]
[1766614381845,0.13529811,87888.0,87884.0,0.000549]
[1766614382064,0.11252,87888.0,87884.0,0.00050478]
[1766614382271,0.11252,87888.0,87880.0,0.0114]
[1766614382272,0.01137824,87887.0,87880.0,0.0114]
[1766614382473,0.11252,87888.0,87880.0,0.0114]
[1766614382918,0.0113785,87885.0,87880.0,0.011355]
[1766614383128,0.01137837,87886.0,87880.0,0.011355]
[1766614383362,0.01137863,87884.0,87880.0,0.011355]
[1766614383562,0.01137889,87882.0,87881.0,0.0114]
[1766614383762,0.01137889,87882.0,87881.0,0.01085]
[1766614383995,0.01137876,87883.0,87881.0,0.01085]
[1766614384580,0.01137863,87884.0,87881.0,0.01085]
[1766614385171,0.06826947,87887.0,87881.0,0.01085]
[1766614385397,0.0113785,87885.0,87881.0,0.01085]
[1766614385929,0.01137863,87884.0,87881.0,0.01085]
[1766614386255,0.0008397,87882.0,87881.0,0.01085]
[1766614386875,0.0002907,87882.0,87881.0,0.01085]
[1766614388691,0.11252,87907.0,87891.0,0.01137772]
[1766614388890,0.11252,87907.0,87900.0,0.0005]
[1766614388891,0.10452,87907.0,87900.0,0.0005]
[1766614389122,0.10452,87907.0,87897.0,0.0114]
[1766614389331,0.01137488,87913.0,87897.0,0.0114]
[1766614389332,0.01137488,87913.0,87907.0,5e-05]
[1766614389462,0.12392,87912.0,87897.0,0.01137695]
[1766614389671,0.12392,87912.0,87880.0,0.29504927]
[1766614389672,0.11252,87897.0,87889.0,0.01137798]
[1766614389873,0.04323733,87908.0,87889.0,0.01137798]
[1766614389874,0.11252,87895.0,87891.0,0.01137772]
[1766614390055,0.11252,87895.0,87890.0,0.05688927]
[1766614390056,0.12392,87895.0,87892.0,0.01137759]
[1766614390417,0.12392,87895.0,87890.0,0.01137785]
[1766614390588,0.000549,87892.0,87890.0,0.01137785]
[1766614390970,0.12392,87895.0,87891.0,0.01137772]
[1766614391357,0.12392,87895.0,87887.0,0.01137824]
[1766614391358,0.05707372,87915.0,87897.0,0.01137695]
[1766614391554,0.12392,87911.0,87903.0,0.01137617]
[1766614391757,0.0002,87915.0,87903.0,0.01137617]
[1766614391758,0.0114,87910.0,87904.0,0.01137604]
[1766614391958,0.0114,87910.0,87906.0,0.01137578]
[1766614392205,0.0002,87915.0,87907.0,0.01137565]
[1766614392459,0.0114,87912.0,87906.0,0.01137578]
[1766614392677,0.0114,87912.0,87905.0,0.01137591]
[1766614392889,0.0114,87912.0,87909.0,0.01137539]
[1766614393103,0.04552,87918.0,87909.0,0.01137539]
[1766614393104,0.11252,87927.0,87919.0,0.06824424]
[1766614393308,0.11252,87927.0,87926.0,0.03186181]
[1766614393309,0.11287314,87927.0,87926.0,0.03186181]
[1766614393437,0.11287314,87927.0,87924.0,0.01137345]
[1766614393634,0.11287314,87927.0,87917.0,0.01137436]
[1766614393635,0.0114,87926.0,87917.0,0.01137436]
[1766614393841,0.12389332,87925.0,87914.0,0.01137475]
[1766614394097,0.11252,87925.0,87914.0,0.01137475]
[1766614394291,0.11252,87925.0,87907.0,0.22751094]
[1766614394292,0.0114,87926.0,87904.0,0.01137604]
[1766614394293,0.01137423,87918.0,87904.0,0.01137604]
[1766614394497,0.12392,87917.0,87904.0,0.01137604]
[1766614394723,0.00071488,87905.0,87904.0,0.01137604]
[1766614394855,8.8e-07,87905.0,87904.0,0.01137604]
[1766614396311,8.8e-07,87905.0,87896.0,0.26168918]
[1766614396312,0.112684,87904.0,87898.0,0.01137682]
[1766614396569,0.0114,87903.0,87895.0,0.06826265]
[1766614396765,0.0114,87903.0,87898.0,0.03186181]
[1766614397297,0.0114,87903.0,87893.0,0.00011]
[1766614397299,0.113234,87898.0,87893.0,0.00011]
[1766614397523,0.0114,87897.0,87895.0,0.05688605]
[1766614397730,0.0114,87897.0,87894.0,0.01137734]
[1766614397731,0.011015,87897.0,87894.0,0.01137734]
[1766614398075,0.011015,87897.0,87894.0,0.06826356]
[1766614398279,0.123535,87897.0,87893.0,0.00011]
[1766614398408,0.123535,87897.0,87893.0,0.01159343]
[1766614398818,0.11252,87897.0,87895.0,0.02275429]
[1766614398998,0.0114,87896.0,87895.0,0.01977185]
[1766614399618,0.0114,87896.0,87841.0,0.08160178]
[1766614399619,0.11252,87893.0,87880.0,0.01137915]
[1766614399896,0.11252,87893.0,87881.0,0.01137902]
[1766614400116,0.11252,87893.0,87883.0,0.01137876]
[1766614400308,0.11252,87893.0,87882.0,0.01137889]
[1766614400530,0.11252,87893.0,87881.0,0.01137902]
[1766614400786,0.12389747,87893.0,87881.0,0.01137902]
[1766614400932,0.11252,87891.0,87880.0,0.01137915]
[1766614401137,0.06826343,87895.0,87872.0,0.03415745]
[1766614401138,0.000549,87880.0,87872.0,0.05690041]
[1766614401334,0.000549,87880.0,87876.0,0.01137967]
[1766614401613,0.000549,87880.0,87877.0,0.01137954]
[1766614401764,0.0114,87881.0,87876.0,0.01137967]
[1766614402228,0.0114,87881.0,87877.0,0.01137954]
[1766614402464,0.0114,87881.0,87876.0,0.01137967]
[1766614403113,0.0114,87881.0,87872.0,4.22e-06]
[1766614403114,0.11252,87875.0,87872.0,4.22e-06]
[1766614403321,0.11252,87873.0,87872.0,4.22e-06]
[1766614409294,0.11252,87873.0,87872.0,0.01059393]
[1766614409541,0.11948,87871.0,87862.0,0.06839888]
[1766614409709,0.11958584,87871.0,87864.0,0.05690582]
[1766614409908,0.11958584,87871.0,87866.0,0.01138096]
[1766614410525,0.11958584,87871.0,87865.0,0.01138109]
[1766614410712,0.11958584,87871.0,87862.0,0.00011]
[1766614412002,0.11958584,87871.0,87863.0,0.01138135]
[1766614412221,0.11958584,87871.0,87862.0,0.01149148]
[1766614412635,0.11958584,87871.0,87862.0,0.00011]
[1766614412854,0.13088,87870.0,87854.0,0.02275429]
[1766614413055,0.1308607,87868.0,87857.0,0.01138213]
[1766614413289,0.11948,87868.0,87858.0,0.011382]
[1766614413811,0.1308607,87868.0,87857.0,0.01138213]
[1766614414466,0.01138083,87867.0,87856.0,0.01138226]
[1766614414665,0.11948,87866.0,87857.0,0.01138213]
[1766614414866,0.11948,87864.0,87854.0,0.01138252]
[1766614415073,0.11948,87864.0,87855.0,0.01138239]
[1766614415610,0.11948,87864.0,87854.0,0.01138252]
[1766614415921,0.11948,87864.0,87855.0,0.01138239]
[1766614416121,0.11948,87864.0,87854.0,0.01138252]
[1766614417102,0.11948,87864.0,87855.0,0.01138239]
[1766614417508,0.11948,87864.0,87856.0,0.01138226]
[1766614419311,0.11948,87864.0,87854.0,0.01138252]
[1766614420348,0.11948,87864.0,87853.0,0.01138265]
[1766614420548,0.13086122,87864.0,87853.0,0.01138265]
[1766614421040,0.11948,87864.0,87854.0,0.01138252]
[1766614421270,0.13086122,87864.0,87853.0,0.01138265]
[1766614421508,0.11948,87864.0,87854.0,0.02196565]
[1766614421723,0.11948,87864.0,87855.0,0.01058313]
[1766614421922,0.11948,87864.0,87856.0,0.01058313]
[1766614422134,0.11948,87864.0,87857.0,0.01058313]
[1766614422341,0.11948,87864.0,87858.0,0.01058313]
[1766614422515,0.11948,87864.0,87852.0,0.01138278]
[1766614422516,0.11948,87864.0,87859.0,0.01058313]
[1766614422729,0.11948,87864.0,87860.0,0.01058313]
[1766614422880,0.11948,87864.0,87861.0,0.01003813]
[1766614423220,0.11948,87864.0,87851.0,0.0113829]
[1766614423429,0.00055,87861.0,87852.0,0.01138278]
[1766614423629,0.0114,87860.0,87852.0,0.01138278]
[1766614423788,0.0114,87860.0,87853.0,0.01138265]
[1766614424415,0.00399481,87860.0,87853.0,0.01138265]
[1766614425257,0.00399481,87860.0,87848.0,0.01138329]
[1766614425258,0.011382,87858.0,87844.0,0.0113829]
[1766614425474,0.12653278,87852.0,87837.0,0.1039]
[1766614425673,0.12655,87851.0,87841.0,0.05692102]
[1766614425854,0.12655,87851.0,87842.0,0.01138407]
[1766614426149,0.12655,87851.0,87843.0,0.01138394]
[1766614426448,0.12655,87851.0,87844.0,0.01138381]
[1766614428066,0.12655,87851.0,87842.0,0.01138407]
[1766614428266,0.12655,87851.0,87843.0,0.01138394]
[1766614429214,0.12655,87851.0,87838.0,0.01138459]
[1766614429372,0.11515,87849.0,87839.0,0.0683066]
[1766614429567,0.11515,87849.0,87841.0,0.0113842]
[1766614429766,0.11515,87849.0,87840.0,0.01138433]
[1766614430148,0.11515,87849.0,87841.0,0.0113842]
[1766614430486,0.11515,87849.0,87840.0,0.01138433]
[1766614430666,0.11515,87849.0,87841.0,0.0113842]
[1766614431206,0.0114,87851.0,87841.0,0.0113842]
[1766614431207,0.0114,87851.0,87842.0,0.01138407]
[1766614431493,0.12655,87851.0,87843.0,0.01138394]
[1766614431697,0.12655,87851.0,87842.0,0.01138407]
[1766614432931,0.12655,87851.0,87843.0,0.01138394]
[1766614433148,0.12655,87851.0,87844.0,0.01138381]
[1766614434268,0.12655,87851.0,87845.0,0.01138368]
[1766614434827,0.12655,87851.0,87846.0,0.01062081]
[1766614435024,0.12655,87851.0,87847.0,0.01062081]
[1766614435230,0.12655,87851.0,87848.0,0.01062081]
[1766614435430,0.12655,87851.0,87849.0,0.01062081]
[1766614435650,0.12655,87851.0,87850.0,0.01062081]
[1766614438731,0.12655,87851.0,87850.0,0.01007081]
[1766614439343,0.11914371,87851.0,87850.0,0.01007081]
[1766614448907,0.11859471,87851.0,87850.0,0.01007081]
[1766614449750,0.11888499,87851.0,87850.0,0.01007081]
[1766614450021,0.11888499,87851.0,87836.0,0.01138485]
[1766614450022,0.01138316,87849.0,87836.0,0.01138485]
[1766614450232,0.1188,87848.0,87837.0,0.01138472]
[1766614450443,0.1188,87848.0,87838.0,0.01138459]
[1766614451073,0.13018329,87848.0,87837.0,0.01138472]
[1766614451646,0.13018329,87848.0,87838.0,0.01138459]
[1766614451647,0.1188,87848.0,87838.0,0.01138459]
[1766614454296,0.11139341,87848.0,87838.0,0.01138459]
[1766614456717,0.11139341,87848.0,87839.0,0.01138446]
[1766614457538,0.11139341,87848.0,87838.0,0.01138459]
[1766614459683,0.10028354,87848.0,87838.0,0.01138459]
[1766614460884,0.10028354,87848.0,87839.0,0.01138446]
[1766614461523,0.10028354,87848.0,87838.0,0.01138459]
[1766614462100,0.10028354,87848.0,87839.0,0.01065335]
[1766614462301,0.10028354,87848.0,87840.0,0.01065335]
[1766614462505,0.10028354,87848.0,87841.0,0.01065335]
[1766614462708,0.10028354,87848.0,87842.0,0.01065335]
[1766614462889,0.10028354,87848.0,87843.0,0.01065335]
[1766614463082,0.10028354,87848.0,87844.0,0.01065335]
[1766614463419,0.10028354,87848.0,87845.0,0.01065335]
[1766614463662,0.10028354,87848.0,87846.0,0.01010435]
[1766614463865,0.10028354,87848.0,87838.0,0.01138459]
[1766614464365,0.10028354,87848.0,87839.0,0.01138446]
[1766614464995,0.10028354,87848.0,87838.0,0.01138459]
[1766614466642,0.11166683,87848.0,87837.0,0.01138472]
[1766614466881,0.10028354,87848.0,87839.0,0.01138446]
[1766614467086,0.10028354,87848.0,87838.0,0.01138459]
[1766614467522,0.10028354,87848.0,87839.0,0.01138446]
[1766614468474,0.10028354,87848.0,87838.0,0.01138459]
[1766614468670,0.10028354,87848.0,87839.0,0.01138446]
[1766614469422,0.09287696,87848.0,87839.0,0.01138446]
[1766614469636,0.09287696,87848.0,87838.0,0.01138459]
[1766614469848,0.09287696,87848.0,87837.0,0.01138472]
[1766614469849,0.09315038,87848.0,87837.0,0.01138472]
[1766614470316,0.08176709,87848.0,87838.0,0.01138459]
[1766614470911,0.08176709,87848.0,87837.0,0.01138472]
[1766614470912,0.09315038,87848.0,87837.0,0.01138472]
[1766614471117,0.08176709,87848.0,87838.0,0.01138459]
[1766614471316,0.09315038,87848.0,87838.0,0.01138459]
[1766614471675,0.08176709,87848.0,87838.0,0.01138459]
[1766614474659,0.08160171,87848.0,87837.0,0.01138472]
[1766614475076,0.08160171,87848.0,87836.0,0.06830868]
[1766614475077,0.08160171,87848.0,87836.0,0.01138485]
[1766614475276,0.13851853,87848.0,87835.0,0.1838895]
[1766614475509,0.01138342,87847.0,87836.0,0.01138485]
[1766614475713,0.0114,87846.0,87837.0,0.02204116]
[1766614475975,0.0114,87846.0,87838.0,0.02204103]
[1766614476182,0.0114,87846.0,87839.0,0.01065644]
[1766614476356,0.0114,87846.0,87840.0,0.01065644]
[1766614476587,0.0114,87846.0,87832.0,0.05692626]
[1766614476588,0.01138381,87844.0,87831.0,0.0113855]
[1766614476760,0.11801,87844.0,87834.0,0.01138511]
[1766614476916,0.11801,87844.0,87835.0,0.01138498]
[1766614477662,0.11801,87844.0,87836.0,0.01138485]
[1766614477864,0.11805014,87844.0,87836.0,0.01138485]
[1766614479519,0.11805014,87844.0,87834.0,0.01138511]
[1766614479906,0.10693992,87844.0,87834.0,0.01138511]
[1766614480105,0.10693992,87844.0,87835.0,0.01138498]
[1766614480649,0.10693992,87844.0,87836.0,0.01138485]
[1766614480846,0.10693992,87844.0,87835.0,0.01138498]
[1766614481073,0.10693992,87844.0,87836.0,0.01138485]
[1766614481273,0.10693992,87844.0,87835.0,0.01138498]
[1766614481481,0.11832373,87844.0,87833.0,0.01138524]
[1766614481704,0.10693992,87844.0,87834.0,0.01138511]
[1766614481902,0.10693992,87844.0,87835.0,0.01138498]
[1766614482281,0.10693992,87844.0,87836.0,0.01138485]
[1766614483751,4.014e-05,87844.0,87837.0,0.01138472]
[1766614484053,1.4e-07,87844.0,87838.0,0.01138459]
[1766614484564,1.4e-07,87844.0,87839.0,0.01138446]
[1766614484923,1.4e-07,87844.0,87838.0,0.01138459]
[1766614487004,1.4e-07,87844.0,87840.0,0.01138433]
[1766614487191,1.4e-07,87844.0,87839.0,0.01138446]
[1766614487406,1.4e-07,87844.0,87838.0,0.01138459]
[1766614487811,1.4e-07,87844.0,87839.0,0.01138446]
[1766614488385,0.0114,87843.0,87839.0,0.01138446]
[1766614488647,0.010891,87843.0,87840.0,0.01065373]
[1766614488851,0.010891,87843.0,87841.0,0.01065373]
[1766614489054,0.010891,87843.0,87842.0,0.01065373]
[1766614489793,0.0114,87843.0,87842.0,0.01065373]
[1766614498044,0.0114,87843.0,87842.0,0.01065379]
[1766614499977,0.0114,87843.0,87827.0,0.12087]
[1766614499978,0.0113842,87841.0,87827.0,0.12087]
[1766614500137,0.00028999,87843.0,87826.0,0.01138614]
[1766614500138,0.02275429,87837.0,87826.0,0.01138614]
[1766614500354,0.0114,87836.0,87831.0,0.0113855]
[1766614500716,0.0114,87835.0,87831.0,0.12091014]
[1766614514984,0.00032524,87835.0,87833.0,0.0569259]
[1766614515234,0.05694265,87853.0,87840.0,0.17779149]
[1766614515434,0.01138265,87853.0,87842.0,0.01138407]
[1766614515641,0.0114,87852.0,87842.0,0.01138407]
[1766614515782,0.02278278,87852.0,87841.0,0.0113842]
[1766614515990,0.01138252,87854.0,87842.0,0.01138407]
[1766614516206,0.0114,87853.0,87849.0,0.05691578]
[1766614516443,0.0114,87853.0,87847.0,0.12087]
[1766614516444,0.13581135,87863.0,87855.0,0.01138239]
[1766614516445,0.12443,87863.0,87855.0,0.01138239]
[1766614516645,0.0114,87862.0,87854.0,0.01138252]
[1766614516842,0.13583,87862.0,87851.0,0.0113829]
[1766614517077,0.13583,87862.0,87853.0,0.01138265]
[1766614517270,0.13583,87862.0,87852.0,0.01138278]
[1766614517478,0.13583,87862.0,87851.0,0.0113829]
[1766614517969,0.13583,87862.0,87850.0,0.01138303]
[1766614518806,0.13583,87862.0,87854.0,0.01138252]
[1766614518975,0.13583,87862.0,87851.0,0.0113829]
[1766614519173,0.13583,87862.0,87852.0,0.01138278]
[1766614520096,0.13583,87862.0,87853.0,0.01138265]
[1766614521107,0.13583,87862.0,87854.0,0.01138252]
[1766614521310,0.13583,87862.0,87853.0,0.01138265]
[1766614521974,0.13583,87862.0,87854.0,0.01138252]
[1766614522166,0.13583,87862.0,87852.0,0.01138278]
[1766614522499,0.13583,87862.0,87853.0,0.01138265]
[1766614522898,0.12443,87869.0,87853.0,0.13225265]
[1766614523031,0.01138096,87866.0,87853.0,0.13225265]
[1766614523241,0.0114,87865.0,87853.0,0.13225265]
[1766614523644,0.13583,87865.0,87854.0,0.01138252]
[1766614524125,0.0114,87864.0,87858.0,0.05691001]
[1766614524329,0.0114,87864.0,87856.0,0.01138226]
[1766614524541,0.0114,87864.0,87855.0,0.06829392]
[1766614524748,0.0114,87864.0,87855.0,0.01138239]
[1766614524942,0.0114,87864.0,87858.0,0.011382]
[1766614525152,0.0114,87863.0,87859.0,0.12087]